fUSD/lending_fUSD_20240825
["ID","MTS","AMOUNT","RATE_DAILY","PERIOD"]
[335871945,1724562654329,-16649.54,0.00010999,2]
[335871946,1724562654338,-16649.54,0.00010999,2]
[335871947,1724562654348,-16649.54,0.00010999,2]
[335871948,1724562654357,-16649.54,0.00010999,2]
[335871949,1724562654367,-573.88381776,0.00010999,2]
[335871950,1724562654376,-16649.54,0.00010999,2]
[335871951,1724562654385,-16649.54,0.00010999,2]
[335871952,1724562654395,-16649.54,0.00010999,2]
[335871953,1724562654404,-16649.54,0.00010999,2]
[335871954,1724562654413,-16649.54,0.00010999,2]
[335871955,1724562654423,-16649.54,0.00010999,2]
[335871956,1724562654432,-500.0,0.00010999,2]
[335871957,1724562654441,-16649.54,0.00010999,2]
[335871958,1724562654451,-500.0,0.00010999,2]
[335871959,1724562654461,-16649.6403397,0.00010999,2]
[335871960,1724562654470,-2232.08,0.00010999,2]
[335871961,1724562654481,-500.0,0.00010999,2]
[335871962,1724562654490,-2232.08,0.00010999,2]
[335871963,1724562654500,-500.0,0.00010999,2]
[335871964,1724562654509,-2232.08,0.00010999,2]
[335871965,1724562654519,-500.0,0.00010999,2]
[335871966,1724562654528,-2232.08,0.00010999,2]
[335871967,1724562654538,-354.38,0.00010999,2]
[335871968,1724562654547,-2232.08,0.00010999,2]
[335871969,1724562654557,-2232.08,0.00010999,2]
[335871970,1724562654568,-2232.08,0.00010999,2]
[335871971,1724562654579,-2232.08,0.00010999,2]
[335871972,1724562654588,-2232.08,0.00010999,2]
[335871973,1724562654597,-2232.08,0.00010999,2]
[335871974,1724562654607,-2232.08,0.00010999,2]
[335871975,1724562654616,-2232.08,0.00010999,2]
[335871976,1724562654625,-2232.08,0.00010999,2]
[335871977,1724562654634,-500.0,0.00010999,2]
[335871978,1724562654644,-2232.08,0.00010999,2]
[335871979,1724562654655,-500.0,0.00010999,2]
[335871980,1724562654664,-2232.08,0.00010999,2]
[335871981,1724562654674,-500.0,0.00010999,2]
[335871982,1724562654683,-2232.08,0.00010999,2]
[335871983,1724562654692,-500.0,0.00010999,2]
[335871984,1724562654702,-500.0,0.00010999,2]
[335871985,1724562654710,-2232.08,0.00010999,2]
[335871986,1724562654719,-500.0,0.00010999,2]
[335871987,1724562654728,-500.0,0.00010999,2]
[335871988,1724562654736,-2232.08,0.00010999,2]
[335871989,1724562654745,-500.0,0.00010999,2]
[335871990,1724562654755,-500.0,0.00010999,2]
[335871991,1724562654764,-2232.18240013,0.00010999,2]
[335871992,1724562654773,-500.0,0.00010999,2]
[335871993,1724562654783,-500.0,0.00010999,2]
[335871994,1724562654793,-500.0,0.00010999,2]
[335871995,1724562654802,-500.0,0.00010999,2]
[335871996,1724562654811,-500.0,0.00010999,2]
[335871997,1724562654820,-500.0,0.00010999,2]
[335871998,1724562654831,-500.0,0.00010999,2]
[335871999,1724562654840,-500.0,0.00010999,2]
[335872000,1724562654851,-500.0,0.00010999,2]
[335872001,1724562654861,-500.0,0.00010999,2]
[335872002,1724562654870,-500.0,0.00010999,2]
[335872003,1724562654880,-595.99611907,0.00010999,2]
[335872004,1724562654889,-500.0,0.00010999,2]
[335872005,1724562654898,-500.0,0.00010999,2]
[335872006,1724562654908,-500.0,0.00010999,2]
[335872007,1724562654918,-500.0,0.00010999,2]
[335872008,1724562654927,-500.0,0.00010999,2]
[335872009,1724562654937,-500.0,0.00010999,2]
[335872010,1724562654946,-500.0,0.00010999,2]
[335872011,1724562654955,-544.59,0.00010999,2]
[335872012,1724562654964,-500.0,0.00010999,2]
[335872013,1724562654974,-500.0,0.00010999,2]
[335872014,1724562654984,-500.0,0.00010999,2]
[335872015,1724562654995,-557.49243165,0.00010999,2]
[335872016,1724562655005,-1911.24,0.00010999,2]
[335872017,1724562655014,-1911.24,0.00010999,2]
[335872018,1724562655024,-1911.24,0.00010999,2]
[335872019,1724562655033,-1911.24,0.00010999,2]
[335872020,1724562655043,-1911.24,0.00010999,2]
[335872021,1724562655052,-1911.24,0.00010999,2]
[335872022,1724562655063,-1911.24,0.00010999,2]
[335872023,1724562655074,-1911.24,0.00010999,2]
[335872024,1724562655084,-1911.24,0.00010999,2]
[335872025,1724562655093,-1911.24,0.00010999,2]
[335872026,1724562655103,-500.0,0.00010999,2]
[335872027,1724562655112,-1911.24,0.00010999,2]
[335872028,1724562655122,-500.0,0.00010999,2]
[335872029,1724562655131,-1911.24,0.00010999,2]
[335872030,1724562655140,-1911.24,0.00010999,2]
[335872031,1724562655149,-500.0,0.00010999,2]
[335872032,1724562655159,-1911.24,0.00010999,2]
[335872033,1724562655168,-500.0,0.00010999,2]
[335872034,1724562655178,-1911.24,0.00010999,2]
[335872035,1724562655187,-1911.24,0.00010999,2]
[335872036,1724562655196,-500.0,0.00010999,2]
[335872037,1724562655205,-1911.24,0.00010999,2]
[335872038,1724562655214,-500.0,0.00010999,2]
[335872039,1724562655224,-1911.24,0.00010999,2]
[335872040,1724562655233,-500.0,0.00010999,2]
[335872041,1724562655242,-1911.27567618,0.00010999,2]
[335872042,1724562655251,-500.0,0.00010999,2]
[335872043,1724562655261,-498.51922456,0.00010999,2]
[335872044,1724562655270,-713.32,0.00010999,2]
[335872045,1724562655279,-713.32,0.00010999,2]
[335872046,1724562655289,-713.32,0.00010999,2]
[335872047,1724562655298,-713.32,0.00010999,2]
[335872048,1724562655308,-713.32,0.00010999,2]
[335872049,1724562655317,-713.32,0.00010999,2]
[335872050,1724562655326,-713.32,0.00010999,2]
[335872051,1724562655335,-713.32,0.00010999,2]
[335872052,1724562655345,-713.32,0.00010999,2]
[335872053,1724562655354,-713.32,0.00010999,2]
[335872054,1724562655363,-713.32,0.00010999,2]
[335872055,1724562655373,-713.32,0.00010999,2]
[335872056,1724562655383,-713.32,0.00010999,2]
[335872057,1724562655392,-500.0,0.00010999,2]
[335872058,1724562655402,-500.0,0.00010999,2]
[335872059,1724562655411,-461.761598,0.00010999,2]
[335872060,1724562655421,-713.32,0.00010999,2]
[335872061,1724562655430,-713.32,0.00010999,2]
[335872062,1724562655439,-713.32,0.00010999,2]
[335872063,1724562655538,-713.32,0.00010999,2]
[335872064,1724562655548,-713.32,0.00010999,2]
[335872065,1724562655559,-713.43377675,0.00010999,2]
[335872066,1724562655779,-1242.17,0.00010999,2]
[335872067,1724562655790,-1242.17,0.00010999,2]
[335872068,1724562655800,-1242.17,0.00010999,2]
[335872069,1724562655810,-1242.17,0.00010999,2]
[335872070,1724562655820,-1242.17,0.00010999,2]
[335872071,1724562655830,-1242.17,0.00010999,2]
[335872072,1724562655838,-1242.17,0.00010999,2]
[335872073,1724562655847,-1242.17,0.00010999,2]
[335872074,1724562655857,-1242.17,0.00010999,2]
[335872075,1724562655866,-1242.17,0.00010999,2]
[335872076,1724562655875,-1242.17,0.00010999,2]
[335872077,1724562655884,-500.0,0.00010999,2]
[335872078,1724562655893,-1242.17,0.00010999,2]
[335872079,1724562655903,-501.79223677,0.00010999,2]
[335872080,1724562655913,-1242.17,0.00010999,2]
[335872081,1724562655922,-1242.17,0.00010999,2]
[335872082,1724562655931,-1242.17,0.00010999,2]
[335872083,1724562655940,-1242.17,0.00010999,2]
[335872084,1724562655950,-1242.17,0.00010999,2]
[335872085,1724562655959,-1242.17,0.00010999,2]
[335872086,1724562655968,-1242.24159249,0.00010999,2]
[335872087,1724562655978,-1363.33,0.00010999,2]
[335872088,1724562655987,-1363.33,0.00010999,2]
[335872089,1724562655997,-1363.33,0.00010999,2]
[335872090,1724562656019,-1363.33,0.00010999,2]
[335872091,1724562656030,-1363.33,0.00010999,2]
[335872092,1724562656040,-1363.33,0.00010999,2]
[335872093,1724562656050,-1363.33,0.00010999,2]
[335872094,1724562656060,-1363.33,0.00010999,2]
[335872095,1724562656071,-1363.33,0.00010999,2]
[335872096,1724562656080,-1363.33,0.00010999,2]
[335872097,1724562656090,-1363.33,0.00010999,2]
[335872098,1724562656100,-1363.33,0.00010999,2]
[335872099,1724562656110,-1363.33,0.00010999,2]
[335872100,1724562656120,-1363.33,0.00010999,2]
[335872101,1724562656129,-1363.33,0.00010999,2]
[335872102,1724562656140,-1363.33,0.00010999,2]
[335872103,1724562656151,-1363.33,0.00010999,2]
[335872104,1724562656160,-1363.33,0.00010999,2]
[335872105,1724562656171,-1363.40624415,0.00010999,2]
[335872106,1724562656182,-646.36,0.00010999,2]
[335872107,1724562656192,-646.36,0.00010999,2]
[335872108,1724562656201,-646.36,0.00010999,2]
[335872109,1724562656212,-646.36,0.00010999,2]
[335872110,1724562656222,-646.36,0.00010999,2]
[335872111,1724562656232,-646.36,0.00010999,2]
[335872112,1724562656241,-646.36,0.00010999,2]
[335872113,1724562656251,-646.36,0.00010999,2]
[335872114,1724562656261,-646.36,0.00010999,2]
[335872115,1724562656270,-646.36,0.00010999,2]
[335872116,1724562656283,-646.36,0.00010999,2]
[335872117,1724562656292,-646.36,0.00010999,2]
[335872118,1724562656301,-646.36,0.00010999,2]
[335872119,1724562656311,-646.36,0.00010999,2]
[335872120,1724562656321,-646.36,0.00010999,2]
[335872121,1724562656330,-646.36,0.00010999,2]
[335872122,1724562656340,-646.36,0.00010999,2]
[335872123,1724562656350,-646.36,0.00010999,2]
[335872124,1724562656360,-646.5353168,0.00010999,2]
[335872125,1724562656370,-500.0,0.00010999,2]
[335872126,1724562656380,-504.29352476,0.00010999,2]
[335872127,1724562656390,-500.51,0.00010999,2]
[335872128,1724562656399,-500.51,0.00010999,2]
[335872129,1724562656409,-500.51,0.00010999,2]
[335872130,1724562656419,-500.51,0.00010999,2]
[335872131,1724562656430,-500.51,0.00010999,2]
[335872132,1724562656440,-500.51,0.00010999,2]
[335872133,1724562656449,-500.51,0.00010999,2]
[335872134,1724562656458,-500.51,0.00010999,2]
[335872135,1724562656468,-500.51,0.00010999,2]
[335872136,1724562656478,-500.51,0.00010999,2]
[335872137,1724562656487,-500.51,0.00010999,2]
[335872138,1724562656496,-500.51,0.00010999,2]
[335872139,1724562656505,-500.51,0.00010999,2]
[335872140,1724562656515,-500.51,0.00010999,2]
[335872141,1724562656524,-500.51,0.00010999,2]
[335872142,1724562656534,-500.51,0.00010999,2]
[335872143,1724562656543,-500.51,0.00010999,2]
[335872144,1724562656553,-500.51,0.00010999,2]
[335872145,1724562656562,-500.72002393,0.00010999,2]
[335872146,1724562656572,-948.78,0.00010999,2]
[335872147,1724562656583,-948.78,0.00010999,2]
[335872148,1724562656593,-948.78,0.00010999,2]
[335872149,1724562656603,-948.78,0.00010999,2]
[335872150,1724562656613,-948.78,0.00010999,2]
[335872151,1724562656623,-948.78,0.00010999,2]
[335872152,1724562656632,-948.78,0.00010999,2]
[335872153,1724562656642,-948.78,0.00010999,2]
[335872154,1724562656652,-948.78,0.00010999,2]
[335872155,1724562656662,-948.78,0.00010999,2]
[335872156,1724562656671,-948.78,0.00010999,2]
[335872157,1724562656680,-948.78,0.00010999,2]
[335872158,1724562656691,-948.78,0.00010999,2]
[335872159,1724562656700,-948.78,0.00010999,2]
[335872160,1724562656710,-948.78,0.00010999,2]
[335872161,1724562656720,-948.8496,0.00010999,2]
[335872162,1724562656729,-4051.71,0.00010999,2]
[335872163,1724562656739,-4051.71,0.00010999,2]
[335872164,1724562656748,-4051.71,0.00010999,2]
[335872165,1724562656757,-4051.71,0.00010999,2]
[335872166,1724562656767,-4051.71,0.00010999,2]
[335872167,1724562656776,-4051.71,0.00010999,2]
[335872168,1724562656785,-4051.71,0.00010999,2]
[335872169,1724562656795,-4051.71,0.00010999,2]
[335872170,1724562656804,-4051.71,0.00010999,2]
[335872171,1724562656815,-4051.71,0.00010999,2]
[335872172,1724562656825,-4051.71,0.00010999,2]
[335872173,1724562656834,-4051.71,0.00010999,2]
[335872174,1724562656844,-4051.71,0.00010999,2]
[335872175,1724562656853,-4051.71,0.00010999,2]
[335872176,1724562656863,-4051.71,0.00010999,2]
[335872177,1724562656872,-4051.71,0.00010999,2]
[335872178,1724562656881,-4051.71,0.00010999,2]
[335872179,1724562656891,-4051.71,0.00010999,2]
[335872180,1724562656900,-4051.94225975,0.00010999,2]
[335872181,1724562656910,-500.0,0.00010999,2]
[335872182,1724562656920,-500.0,0.00010999,2]
[335872183,1724562656929,-500.0,0.00010999,2]
[335872184,1724562656939,-500.0,0.00010999,2]
[335872185,1724562656948,-500.0,0.00010999,2]
[335872186,1724562656958,-500.0,0.00010999,2]
[335872187,1724562656967,-440.88842114,0.00010999,2]
[335872188,1724562656976,-9384.94,0.00010999,2]
[335872189,1724562656986,-9384.94,0.00010999,2]
[335872190,1724562656996,-9384.94,0.00010999,2]
[335872191,1724562657005,-9384.94,0.00010999,2]
[335872192,1724562657015,-9384.94,0.00010999,2]
[335872193,1724562657024,-9384.94,0.00010999,2]
[335872194,1724562657034,-9384.94,0.00010999,2]
[335872195,1724562657046,-9384.94,0.00010999,2]
[335872196,1724562657056,-9384.94,0.00010999,2]
[335872197,1724562657066,-9384.94,0.00010999,2]
[335872198,1724562657075,-9384.94,0.00010999,2]
[335872199,1724562657085,-9384.94,0.00010999,2]
[335872200,1724562657095,-9384.94,0.00010999,2]
[335872201,1724562657104,-9384.94,0.00010999,2]
[335872202,1724562657114,-9384.94,0.00010999,2]
[335872203,1724562657123,-9384.94,0.00010999,2]
[335872204,1724562657133,-9384.94,0.00010999,2]
[335872205,1724562657142,-9384.94,0.00010999,2]
[335872206,1724562657152,-9385.05416833,0.00010999,2]
[335872207,1724562657161,-518.95,0.00010999,2]
[335872208,1724562657171,-518.95,0.00010999,2]
[335872209,1724562657181,-518.95,0.00010999,2]
[335872210,1724562657191,-518.95,0.00010999,2]
[335872211,1724562657201,-518.95,0.00010999,2]
[335872212,1724562657210,-518.95,0.00010999,2]
[335872213,1724562657220,-518.95,0.00010999,2]
[335872214,1724562657229,-518.95,0.00010999,2]
[335872215,1724562657239,-518.95,0.00010999,2]
[335872216,1724562657248,-518.95,0.00010999,2]
[335872217,1724562657257,-500.0,0.00010999,2]
[335872218,1724562657267,-500.0,0.00010999,2]
[335872219,1724562657277,-518.95,0.00010999,2]
[335872220,1724562657287,-500.0,0.00010999,2]
[335872221,1724562657296,-518.95,0.00010999,2]
[335872222,1724562657306,-500.0,0.00010999,2]
[335872223,1724562657317,-518.95,0.00010999,2]
[335872224,1724562657327,-500.0,0.00010999,2]
[335872225,1724562657348,-518.95,0.00010999,2]
[335872226,1724562657357,-500.0,0.00010999,2]
[335872227,1724562657367,-518.95,0.00010999,2]
[335872228,1724562657376,-518.95,0.00010999,2]
[335872229,1724562657386,-500.0,0.00010999,2]
[335872230,1724562657395,-500.0,0.00010999,2]
[335872231,1724562657405,-519.01,0.00010999,2]
[335872232,1724562657415,-500.0,0.00010999,2]
[335872233,1724562657424,-500.0,0.00010999,2]
[335872234,1724562657434,-500.0,0.00010999,2]
[335872235,1724562657444,-500.0,0.00010999,2]
[335872236,1724562657453,-500.0,0.00010999,2]
[335872237,1724562657462,-500.0,0.00010999,2]
[335872238,1724562657472,-500.0,0.00010999,2]
[335872239,1724562657481,-500.0,0.00010999,2]
[335872240,1724562657491,-500.0,0.00010999,2]
[335872241,1724562657500,-500.0,0.00010999,2]
[335872242,1724562657509,-500.0,0.00010999,2]
[335872243,1724562657519,-500.0,0.00010999,2]
[335872244,1724562657528,-500.0,0.00010999,2]
[335872245,1724562657538,-500.0,0.00010999,2]
[335872246,1724562657548,-485.5629863,0.00010999,2]
[335872247,1724562657558,-500.0,0.00010999,2]
[335872248,1724562657679,-266.41,0.00010999,2]
[335872249,1724562657690,-193.30323054,0.00010999,2]
[335872250,1724562657700,-500.0,0.00010999,2]
[335872251,1724562657710,-500.0,0.00010999,2]
[335872252,1724562657720,-500.0,0.00010999,2]
[335872253,1724562657730,-500.0,0.00010999,2]
[335872254,1724562657740,-208.79,0.00010999,2]
[335872255,1724562657750,-500.0,0.00010999,2]
[335872256,1724562657759,-500.0,0.00010999,2]
[335872257,1724562657769,-500.0,0.00010999,2]
[335872258,1724562657778,-164.48595454,0.00010999,2]
[335872259,1724562657787,-380944.14076671,0.00011,2]
[335872260,1724562658049,-2900.0,0.00011,2]
[335872261,1724562658061,-10737.31096039,0.00011,2]
[335872262,1724562658072,-1332.869238,0.00011,2]
[335872263,1724562658113,155.35286891,0.00010009,2]
[335872264,1724562658157,-675.04750225,0.00010026,2]
[335872265,1724562658168,-2169.40218819,0.00010026,2]
[335872266,1724562658178,-523.39091194,0.00010862,2]
[335872267,1724562658188,-138039.31944745,0.00011,2]
[335872268,1724562658197,-514.21444003,0.00011,2]
[335872269,1724562658207,-500.0,0.00011,2]
[335872270,1724562658217,-500.0,0.00011,2]
[335872271,1724562658226,-500.0,0.00011,2]
[335872272,1724562658236,-500.0,0.00011,2]
[335872273,1724562658244,-500.0,0.00011,2]
[335872274,1724562658253,-500.0,0.00011,2]
[335872275,1724562658263,-7001.75915439,0.00011,2]
[335872276,1724562658274,-511.85182196,0.00011,2]
[335872277,1724562658297,-11154.02902372,0.00011,2]
[335872278,1724562658350,-64488.56442754,0.00011,2]
[335872279,1724562658361,-858.6849167,0.00011,2]
[335872280,1724562658373,-5753.72585808,0.00011,2]
[335872281,1724562658388,-701.11,0.00011,2]
[335872282,1724562658399,-316.220239,0.00011,2]
[335872283,1724562658525,-155.0,0.00010097,2]
[335872284,1724562658535,-2897.56,0.00011,2]
[335872285,1724562658545,-409.86,0.00011,2]
[335872286,1724562658556,-1312.03395148,0.00011,2]
[335872287,1724562659076,-177479.95591353,0.00011,2]
[335872288,1724562659088,-254.08592998,0.00011,2]
[335872289,1724562659100,-2544.01325688,0.00011,2]
[335872290,1724562659112,-815.63665919,0.00011,2]
[335872291,1724562659123,-20967.65251968,0.00011,2]
[335872292,1724562659134,-1973.60967681,0.00011,2]
[335872293,1724562659149,-745.44138,0.00011,2]
[335872294,1724562659161,-650.69592004,0.00011,2]
[335872295,1724562659172,-2356.43045917,0.00011,2]
[335872296,1724562659778,667.99430408,8.677e-05,2]
[335872297,1724562666525,500.0,8.22e-05,2]
[335872298,1724562668240,500.0,9.59e-05,2]
[335872299,1724562668903,250.12856752,8.677e-05,2]
[335872300,1724562669138,155.0,8.677e-05,2]
[335872301,1724562669553,3877.81959156,0.0001,2]
[335872302,1724562672032,164.37927092,8.677e-05,2]
[335872303,1724562673117,189.6718808,8.677e-05,2]
[335872304,1724562673837,164.40260801,8.677e-05,2]
[335872305,1724562677264,203.41395605,8.677e-05,2]
[335872306,1724562685836,600.0,8.22e-05,2]
[335872307,1724562686046,894.10339792,8.677e-05,2]
[335872308,1724562687656,600.0,9.59e-05,2]
[335872309,1724562688653,477.41127141,8.677e-05,2]
[335872310,1724562690117,2034.49444349,8.677e-05,2]
[335872311,1724562713040,500.0,8.22e-05,2]
[335872312,1724562713139,500.0,8.22e-05,2]
[335872313,1724562738384,358.41,9.393e-05,2]
[335872314,1724562773608,1276.69480859,9.963e-05,2]
[335872316,1724562863328,1050.0,0.0001,2]
[335872317,1724562924225,155.0,0.00010009,2]
[335872318,1724562937319,317.56708423,0.00010009,2]
[335872319,1724562943828,15496.82271334,0.00010009,2]
[335872320,1724562951924,335.81635622,0.00010009,2]
[335872321,1724562984919,4061.21399524,0.00010009,2]
[335872322,1724563074676,156.42,7.228e-05,2]
[335872323,1724563229288,150.0,9.949e-05,2]
[335872324,1724563229309,55.49,9.949e-05,2]
[335872325,1724563257640,94.51,8.761e-05,2]
[335872326,1724563257660,153.1376467,8.761e-05,2]
[335872327,1724563257811,139.78943715,8.219e-05,2]
[335872328,1724563257837,212.26056285,8.219e-05,2]
[335872329,1724563308960,592.93,9.948e-05,2]
[335872330,1724563369752,262.4,9.968e-05,2]
[335872331,1724563490084,26178.02925167,0.00010009,2]
[335872334,1724563660232,2344.5834189,0.00010009,2]
[335872335,1724563672220,156.42,7.212e-05,2]
[335872336,1724563677063,1328.31487541,0.0001,2]
[335872342,1724563776155,277.54,9.959e-05,2]
[335872351,1724563815452,345.42,8.219e-05,2]
[335872352,1724563818201,15851.91,9.974e-05,2]
[335872358,1724563837783,-932.48018286,0.00010097,2]
[335872359,1724563837793,-299.85042188,0.00010097,2]
[335872360,1724563837802,-225.08,0.00010109,2]
[335872361,1724563837811,-737.6,0.00010155,2]
[335872362,1724563837820,-345.42,0.00010474,2]
[335872363,1724563837830,-150.0,0.00010785,2]
[335872364,1724563837839,-150.0,0.00010809,2]
[335872365,1724563837848,-155.0,0.00010862,2]
[335872366,1724563837858,-151.80517794,0.00010871,2]
[335872367,1724563837867,-150.0,0.00010871,2]
[335872368,1724563837876,-150.0,0.00010877,2]
[335872369,1724563837886,-447.45785,0.0001089,2]
[335872370,1724563837895,-350.60174226,0.00010892,2]
[335872371,1724563837904,-157.83983933,0.00010899,2]
[335872372,1724563837914,-157.83983928,0.00010899,2]
[335872373,1724563837923,-157.83983928,0.00010899,2]
[335872374,1724563837932,-157.83983928,0.00010899,2]
[335872375,1724563837941,-157.83983928,0.00010899,2]
[335872376,1724563837951,-805.03075775,0.000109,2]
[335872377,1724563837961,-157.83983928,0.000109,2]
[335872378,1724563837970,-350.60174226,0.000109,2]
[335872379,1724563837980,-150.0,0.00010905,2]
[335872380,1724563837989,-150.0,0.00010907,2]
[335872381,1724563837998,-150.0,0.00010932,2]
[335872382,1724563838007,-300.0,0.00010944,2]
[335872383,1724563838016,-300.0,0.00010944,2]
[335872384,1724563838025,-150.0,0.00010945,2]
[335872385,1724563838034,-197.51708385,0.00010949,2]
[335872386,1724563838043,-172.5,0.00010959,2]
[335872387,1724563838052,-157.07,0.00010959,2]
[335872388,1724563838061,-250.0,0.00010959,2]
[335872389,1724563838070,-150.0,0.00010959,2]
[335872390,1724563838079,-500.0,0.0001096,2]
[335872391,1724563838088,-500.0,0.0001096,2]
[335872392,1724563838097,-500.0,0.0001096,2]
[335872393,1724563838107,-600.0,0.0001096,2]
[335872394,1724563838116,-152.31,0.0001098,2]
[335872395,1724563838125,-6204.9624015,0.00010988,2]
[335872396,1724563838136,-111524.54800017,0.00010988,2]
[335872397,1724563838146,-500.0,0.00010989,2]
[335872398,1724563838156,-500.0,0.00010989,2]
[335872399,1724563838165,-282214.29557833,0.0001099,2]
[335872406,1724563840002,-617.23268813,0.00010989,2]
[335872407,1724563840011,-412.74694241,0.0001099,2]
[335872408,1724563840022,-32149.27317094,0.0001099,2]
[335872409,1724563840033,-277.16670234,0.0001099,2]
[335872410,1724563840094,-322.50000001,0.0001099,2]
[335872411,1724563840105,-1156.2,0.0001099,2]
[335872412,1724563840116,-2689.99555988,0.0001099,2]
[335872413,1724563840127,-333.81892786,0.0001099,2]
[335872414,1724563840139,-88030.14099665,0.0001099,2]
[335872415,1724563840148,-4213.3521811,0.00010992,2]
[335872416,1724563840157,-3751.2253269,0.00010992,2]
[335872417,1724563840165,-3289.0984727,0.00010992,2]
[335872418,1724563840175,-2826.9716184,0.00010992,2]
[335872419,1724563840184,-2364.8447642,0.00010992,2]
[335872420,1724563840193,-13375.5091036,0.00010992,2]
[335872421,1724563840202,-11889.093739,0.00010992,2]
[335872422,1724563840212,-10402.6783745,0.00010992,2]
[335872423,1724563840221,-8916.26301,0.00010992,2]
[335872424,1724563840230,-7429.8476454,0.00010992,2]
[335872425,1724563840239,-4630.6127383,0.00010992,2]
[335872426,1724563840249,-4119.3629239,0.00010992,2]
[335872427,1724563840259,-3608.1131095,0.00010992,2]
[335872428,1724563840271,-3096.8632951,0.00010992,2]
[335872429,1724563840281,-2585.6134808,0.00010992,2]
[335872430,1724563840290,-2018.1947216,0.00010992,2]
[335872431,1724563840299,-1795.3728759,0.00010992,2]
[335872432,1724563840310,-1572.5510303,0.00010992,2]
[335872433,1724563840319,-1349.7291846,0.00010992,2]
[335872434,1724563840329,-1126.907339,0.00010992,2]
[335872435,1724563840339,-615.25171289,0.00010996,2]
[335872436,1724563840348,-501.79289943,0.00010996,2]
[335872437,1724563840357,-500.0,0.00010996,2]
[335872438,1724563840366,-500.0,0.00010996,2]
[335872439,1724563840375,-529.72715238,0.00010996,2]
[335872440,1724563840384,-500.0,0.00010996,2]
[335872441,1724563840394,-624.44560496,0.00010996,2]
[335872442,1724563840403,-193.31175405,0.00010996,2]
[335872443,1724563840412,-500.0,0.00010996,2]
[335872444,1724563840421,-500.0,0.00010996,2]
[335872445,1724563840431,-204.52301275,0.00010996,2]
[335872446,1724563840440,-500.0,0.00010996,2]
[335872447,1724563840449,-500.0,0.00010996,2]
[335872448,1724563840459,-500.0,0.00010996,2]
[335872449,1724563840468,-500.0,0.00010996,2]
[335872450,1724563840477,-500.0,0.00010996,2]
[335872451,1724563840486,-500.0,0.00010996,2]
[335872452,1724563840495,-500.0,0.00010996,2]
[335872453,1724563840505,-500.0,0.00010996,2]
[335872454,1724563840514,-500.0,0.00010996,2]
[335872455,1724563840523,-501.50584327,0.00010996,2]
[335872456,1724563840532,-500.0,0.00010996,2]
[335872457,1724563840541,-501.71236458,0.00010996,2]
[335872458,1724563840550,-500.0,0.00010996,2]
[335872459,1724563840560,-500.0,0.00010996,2]
[335872460,1724563840569,-464.69976348,0.00010996,2]
[335872461,1724563840578,-500.0,0.00010996,2]
[335872462,1724563840588,-500.0,0.00010996,2]
[335872463,1724563840597,-500.0,0.00010996,2]
[335872464,1724563840606,-500.0,0.00010996,2]
[335872465,1724563840616,-500.0,0.00010996,2]
[335872466,1724563840625,-500.0,0.00010996,2]
[335872467,1724563840634,-500.0,0.00010996,2]
[335872468,1724563840643,-500.0,0.00010996,2]
[335872469,1724563840652,-530.18950419,0.00010996,2]
[335872470,1724563840661,-169.87121725,0.00010996,2]
[335872471,1724563840671,-500.0,0.00010996,2]